fUSD/lending_fUSD_20250123
["ID","MTS","AMOUNT","RATE_DAILY","PERIOD"]
[350102871,1737628241530,-500.0,0.00017805,2]
[350102872,1737628241539,-500.0,0.00017805,2]
[350102873,1737628241549,-500.0,0.00017805,2]
[350102874,1737628241558,-500.0,0.00017805,2]
[350102875,1737628241567,-500.0,0.00017805,2]
[350102876,1737628241577,-500.0,0.00017805,2]
[350102877,1737628241586,-538.78,0.00017805,2]
[350102878,1737628241595,-500.0,0.00017805,2]
[350102879,1737628241604,-567.4,0.00017805,2]
[350102880,1737628241613,-500.0,0.00017805,2]
[350102881,1737628241622,-524.77,0.00017805,2]
[350102882,1737628241631,-500.0,0.00017805,2]
[350102883,1737628241640,-500.0,0.00017805,2]
[350102884,1737628241649,-500.0,0.00017805,2]
[350102885,1737628241658,-522.01,0.00017805,2]
[350102886,1737628241667,-500.0,0.00017805,2]
[350102887,1737628241677,-787.5,0.00017805,2]
[350102888,1737628241690,-1275.34,0.00017805,2]
[350102889,1737628241699,-769.32,0.00017805,2]
[350102890,1737628241708,-2156.24,0.00017805,2]
[350102891,1737628241717,-1069.57,0.00017805,2]
[350102892,1737628241728,-1953.19,0.00017805,2]
[350102893,1737628241738,-877.78,0.00017805,2]
[350102894,1737628241747,-728.1,0.00017805,2]
[350102895,1737628241758,-1299.42,0.00017805,2]
[350102896,1737628241770,-500.0,0.00017805,2]
[350102897,1737628241780,-1095.09,0.00017805,2]
[350102898,1737628241790,-3013.73,0.00017805,2]
[350102899,1737628241800,-500.0,0.00017805,2]
[350102900,1737628241810,-2369.17,0.00017805,2]
[350102901,1737628241819,-500.0,0.00017805,2]
[350102902,1737628241830,-4365.14,0.00017805,2]
[350102903,1737628241840,-500.0,0.00017805,2]
[350102904,1737628241850,-1210.34,0.00017805,2]
[350102905,1737628241859,-500.0,0.00017805,2]
[350102906,1737628241868,-1736.02,0.00017805,2]
[350102907,1737628241879,-580.8,0.00017805,2]
[350102908,1737628241888,-896.15,0.00017805,2]
[350102909,1737628241898,-1157.55,0.00017805,2]
[350102910,1737628241908,-970.94,0.00017805,2]
[350102911,1737628241918,-500.0,0.00017805,2]
[350102912,1737628241927,-845.56,0.00017805,2]
[350102913,1737628241937,-554.1,0.00017805,2]
[350102914,1737628241948,-500.0,0.00017805,2]
[350102915,1737628241958,-500.0,0.00017805,2]
[350102916,1737628241968,-2164.97,0.00017805,2]
[350102917,1737628241978,-1078.92,0.00017805,2]
[350102918,1737628241987,-500.0,0.00017805,2]
[350102919,1737628241997,-500.0,0.00017805,2]
[350102920,1737628242006,-500.0,0.00017805,2]
[350102921,1737628242016,-991.29,0.00017805,2]
[350102922,1737628242025,-832.57,0.00017805,2]
[350102923,1737628242034,-500.0,0.00017805,2]
[350102924,1737628242044,-500.0,0.00017805,2]
[350102925,1737628242053,-1120.57,0.00017805,2]
[350102926,1737628242062,-500.0,0.00017805,2]
[350102927,1737628242071,-500.0,0.00017805,2]
[350102928,1737628242081,-1260.06,0.00017805,2]
[350102929,1737628242091,-500.0,0.00017805,2]
[350102930,1737628242100,-1318.84,0.00017805,2]
[350102931,1737628242110,-500.0,0.00017805,2]
[350102932,1737628242120,-3971.43,0.00017805,2]
[350102933,1737628242130,-500.0,0.00017805,2]
[350102934,1737628242139,-500.0,0.00017805,2]
[350102935,1737628242149,-500.0,0.00017805,2]
[350102936,1737628242160,-500.0,0.00017805,2]
[350102937,1737628242169,-1000.0,0.00017805,2]
[350102938,1737628242178,-1140.59,0.00017805,2]
[350102939,1737628242188,-500.0,0.00017805,2]
[350102940,1737628242197,-500.0,0.00017805,2]
[350102941,1737628242206,-500.0,0.00017805,2]
[350102942,1737628242216,-500.0,0.00017805,2]
[350102943,1737628242225,-500.0,0.00017805,2]
[350102944,1737628242234,-753.77,0.00017805,2]
[350102945,1737628242243,-500.0,0.00017805,2]
[350102946,1737628242253,-500.0,0.00017805,2]
[350102947,1737628242262,-1619.98,0.00017805,2]
[350102948,1737628242271,-500.0,0.00017805,2]
[350102949,1737628242280,-500.0,0.00017805,2]
[350102950,1737628242289,-707.4,0.00017805,2]
[350102951,1737628242299,-500.0,0.00017805,2]
[350102952,1737628242308,-1613.72,0.00017805,2]
[350102953,1737628242317,-877.65,0.00017805,2]
[350102954,1737628242327,-525.36,0.00017805,2]
[350102955,1737628242337,-240.04934327,0.00017805,2]
[350102956,1737628242348,-913.42,0.00017805,2]
[350102957,1737628242359,-500.0,0.00017805,2]
[350102958,1737628242368,-504.42780438,0.00017805,2]
[350102959,1737628242378,-1322.09,0.00017805,2]
[350102960,1737628242387,-500.0,0.00017805,2]
[350102961,1737628242397,-4282.51920783,0.00017806,2]
[350102962,1737628242407,-500.0,0.00017806,2]
[350102963,1737628242416,-500.0,0.00017806,2]
[350102964,1737628242425,-500.0,0.00017806,2]
[350102965,1737628242435,-564.33,0.00017806,2]
[350102966,1737628242445,-500.0,0.00017806,2]
[350102967,1737628242454,-500.0,0.00017806,2]
[350102968,1737628242463,-500.0,0.00017806,2]
[350102969,1737628242473,-500.0,0.00017806,2]
[350102970,1737628242482,-500.0,0.00017806,2]
[350102971,1737628242491,-500.0,0.00017806,2]
[350102972,1737628242500,-500.0,0.00017806,2]
[350102973,1737628242510,-512.04,0.00017806,2]
[350102974,1737628242519,-794.66,0.00017806,2]
[350102975,1737628242529,-500.0,0.00017806,2]
[350102976,1737628242538,-500.0,0.00017806,2]
[350102977,1737628242547,-500.0,0.00017806,2]
[350102978,1737628242556,-500.0,0.00017806,2]
[350102979,1737628242566,-500.0,0.00017806,2]
[350102980,1737628242575,-500.0,0.00017806,2]
[350102981,1737628242586,-500.0,0.00017806,2]
[350102982,1737628242596,-500.0,0.00017806,2]
[350102983,1737628242606,-500.0,0.00017806,2]
[350102984,1737628242615,-500.0,0.00017806,2]
[350102985,1737628242624,-500.0,0.00017806,2]
[350102986,1737628242634,-500.0,0.00017806,2]
[350102987,1737628242643,-500.0,0.00017806,2]
[350102988,1737628242653,-500.0,0.00017806,2]
[350102989,1737628242663,-500.0,0.00017806,2]
[350102990,1737628242673,-500.0,0.00017806,2]
[350102991,1737628242689,-500.0,0.00017806,2]
[350102992,1737628242699,-500.0,0.00017806,2]
[350102993,1737628242709,-500.0,0.00017806,2]
[350102995,1737628242719,-579.62840708,0.00017806,2]
[350102996,1737628242729,-500.0,0.00017806,2]
[350102997,1737628242739,-582.28079011,0.00017806,2]
[350102998,1737628242750,-500.0,0.00017806,2]
[350102999,1737628242759,-500.0,0.00017806,2]
[350103000,1737628242769,-500.0,0.00017806,2]
[350103001,1737628242779,-500.0,0.00017806,2]
[350103002,1737628242789,-500.0,0.00017806,2]
[350103003,1737628242798,-500.0,0.00017806,2]
[350103004,1737628242808,-500.0,0.00017806,2]
[350103005,1737628242816,-500.0,0.00017806,2]
[350103006,1737628242826,-500.0,0.00017806,2]
[350103008,1737628242835,-788.17,0.00017806,2]
[350103009,1737628242844,-500.0,0.00017806,2]
[350103011,1737628242853,-722.95,0.00017806,2]
[350103012,1737628242862,-599.32,0.00017806,2]
[350103013,1737628242871,-500.0,0.00017806,2]
[350103014,1737628242879,-500.0,0.00017806,2]
[350103015,1737628242889,-500.0,0.00017806,2]
[350103016,1737628242900,-500.0,0.00017806,2]
[350103017,1737628242910,-500.0,0.00017806,2]
[350103018,1737628242919,-500.0,0.00017806,2]
[350103019,1737628242928,-500.0,0.00017806,2]
[350103020,1737628242937,-500.0,0.00017806,2]
[350103021,1737628242947,-500.0,0.00017806,2]
[350103022,1737628242957,-881.88,0.00017808,2]
[350103023,1737628242966,-741.3,0.00017808,2]
[350103024,1737628242976,-556.21,0.00017808,2]
[350103025,1737628242985,-1227.15,0.00017808,2]
[350103026,1737628242995,-459.53816748,0.00017808,2]
[350103027,1737628243005,-1762.16,0.00017808,2]
[350103028,1737628243014,-1174.6,0.00017808,2]
[350103029,1737628243023,-500.0,0.00017808,2]
[350103030,1737628243033,-1813.47,0.00017808,2]
[350103031,1737628243042,-868.18,0.00017808,2]
[350103032,1737628243051,-1398.82,0.00017808,2]
[350103033,1737628243060,-1853.11,0.00017808,2]
[350103034,1737628243070,-976.92,0.00017808,2]
[350103035,1737628243080,-803.47,0.00017808,2]
[350103036,1737628243090,-878.69,0.00017808,2]
[350103037,1737628243100,-2113.38,0.00017808,2]
[350103038,1737628243109,-2524.6,0.00017808,2]
[350103039,1737628243119,-500.0,0.00017808,2]
[350103040,1737628243129,-500.0,0.00017808,2]
[350103041,1737628243138,-500.0,0.00017808,2]
[350103042,1737628243148,-2306.75,0.00017808,2]
[350103043,1737628243157,-684.26,0.00017808,2]
[350103044,1737628243167,-619.33,0.00017808,2]
[350103045,1737628243176,-500.0,0.00017808,2]
[350103046,1737628243186,-616.66,0.00017808,2]
[350103047,1737628243195,-500.0,0.00017808,2]
[350103048,1737628243205,-500.81863733,0.00017873,2]
[350103049,1737628243214,-500.0,0.00017873,2]
[350103050,1737628243224,-11354.89930828,0.00017882,2]
[350103051,1737628243233,-500.0,0.00017885,2]
[350103052,1737628243242,-12694.39,0.00017886,2]
[350103053,1737628243251,-30213.0,0.00017886,3]
[350103054,1737628243261,-500.0,0.00017893,2]
[350103055,1737628243271,-500.0,0.00017893,2]
[350103056,1737628243280,-500.0,0.00017893,2]
[350103057,1737628243290,-500.0,0.00017893,2]
[350103058,1737628243300,-500.0,0.00017893,2]
[350103059,1737628243310,-500.0,0.00017893,2]
[350103060,1737628243319,-500.0,0.00017893,2]
[350103061,1737628243328,-501.34,0.00017893,2]
[350103062,1737628243337,-500.0,0.00017893,2]
[350103063,1737628243346,-500.0,0.00017893,2]
[350103064,1737628243356,-500.0,0.00017893,2]
[350103065,1737628243371,-518.4,0.00017893,2]
[350103066,1737628243380,-437.25369764,0.00017893,2]
[350103067,1737628243390,-500.0,0.00017893,2]
[350103068,1737628243399,-444.06548223,0.00017893,2]
[350103069,1737628243409,-500.0,0.00017893,2]
[350103070,1737628243418,-500.0,0.00017893,2]
[350103071,1737628243427,-500.0,0.00017893,2]
[350103072,1737628243437,-1109.95,0.00017893,2]
[350103073,1737628243446,-500.0,0.00017893,2]
[350103074,1737628243455,-503.12,0.00017893,2]
[350103075,1737628243465,-1924.8,0.00017893,2]
[350103076,1737628243474,-1424.7,0.00017893,2]
[350103077,1737628243483,-846.93,0.00017893,2]
[350103078,1737628243493,-897.83,0.00017893,2]
[350103079,1737628243503,-1931.74,0.00017893,2]
[350103080,1737628243512,-500.0,0.00017893,2]
[350103081,1737628243522,-681.171483,0.00017893,2]
[350103082,1737628243531,-500.0,0.00017893,2]
[350103083,1737628243540,-500.0,0.00017893,2]
[350103084,1737628243550,-500.0,0.00017893,2]
[350103085,1737628243559,-1135.0,0.00017893,2]
[350103086,1737628243569,-745.81,0.00017893,2]
[350103088,1737628243579,-2877.57,0.00017893,2]
[350103089,1737628243590,-752.33,0.00017893,2]
[350103090,1737628243599,-594.772219,0.00017893,2]
[350103091,1737628243608,-500.0,0.00017893,2]
[350103092,1737628243617,-885.15,0.00017893,2]
[350103093,1737628243627,-1925.26,0.00017893,2]
[350103094,1737628243636,-1152.02,0.00017893,2]
[350103095,1737628243646,-1595.84,0.00017893,2]
[350103096,1737628243656,-500.0,0.00017893,2]
[350103097,1737628243666,-692.87,0.00017893,2]
[350103098,1737628243676,-500.0,0.00017893,2]
[350103099,1737628243688,-1782.27,0.00017893,2]
[350103100,1737628243697,-500.0,0.00017893,2]
[350103101,1737628243706,-3581.4,0.00017893,2]
[350103102,1737628243715,-2785.13,0.00017893,2]
[350103103,1737628243726,-649.91,0.00017893,2]
[350103104,1737628243736,-1135.06,0.00017893,2]
[350103105,1737628243747,-1952.88,0.00017893,2]
[350103106,1737628243757,-925.88,0.00017893,2]
[350103107,1737628243768,-2408.66,0.00017893,2]
[350103108,1737628243778,-575.04,0.00017893,2]
[350103109,1737628243788,-500.0,0.00017893,2]
[350103110,1737628243797,-500.0,0.00017893,2]
[350103111,1737628243806,-1828.0,0.00017893,2]
[350103112,1737628243815,-1061.78,0.00017893,2]
[350103113,1737628243825,-645.58,0.00017893,2]
[350103114,1737628243834,-1269.91,0.00017893,2]
[350103115,1737628243844,-2487.38,0.00017893,2]
[350103116,1737628243854,-873.75,0.00017893,2]
[350103117,1737628243863,-500.0,0.00017893,2]
[350103118,1737628243872,-1125.77,0.00017893,2]
[350103119,1737628243881,-776.84,0.00017893,2]
[350103120,1737628243891,-500.0,0.00017893,2]
[350103121,1737628243900,-667.54,0.00017893,2]
[350103122,1737628243909,-300.0,0.000179,6]
[350103123,1737628243919,-1849.19105754,0.00017954,2]
[350103124,1737628243928,-11354.89930828,0.00017975,2]
[350103125,1737628243938,-465.22301073,0.00018,3]
[350103126,1737628243947,-483.34088836,0.00018,2]
[350103127,1737628243956,-173.07,0.00018009,2]
[350103128,1737628243965,-432.0,0.00018016,2]
[350103129,1737628243974,-11354.89930828,0.00018068,2]
[350103130,1737628243983,-500.0,0.00018078,2]
[350103131,1737628243993,-500.0,0.00018078,2]
[350103132,1737628244002,-500.0,0.00018078,2]
[350103133,1737628244013,-500.0,0.00018078,2]
[350103134,1737628244023,-500.0,0.00018078,2]
[350103135,1737628244032,-500.0,0.00018078,2]
[350103136,1737628244042,-500.0,0.00018078,2]
[350103137,1737628244051,-500.0,0.00018078,2]
[350103138,1737628244060,-500.0,0.00018078,2]
[350103139,1737628244070,-500.0,0.00018078,2]
[350103140,1737628244080,-500.0,0.00018078,2]
[350103141,1737628244091,-500.0,0.00018078,2]
[350103142,1737628244100,-517.21833028,0.00018078,2]
[350103143,1737628244110,-500.0,0.00018078,2]
[350103144,1737628244119,-500.0,0.00018078,2]
[350103145,1737628244129,-500.0,0.00018078,2]
[350103146,1737628244138,-500.0,0.00018078,2]
[350103147,1737628244148,-500.0,0.00018078,2]
[350103148,1737628244157,-496.02387692,0.00018078,2]
[350103149,1737628244167,-504.00260762,0.00018078,2]
[350103150,1737628244177,-500.0,0.00018078,2]
[350103151,1737628244186,-500.0,0.00018078,2]
[350103152,1737628244333,-502.63621591,0.00018078,2]
[350103153,1737628244344,-500.0,0.00018078,2]
[350103154,1737628244354,-503.17647593,0.00018078,2]
[350103155,1737628244363,-503.18469331,0.00018078,2]
[350103156,1737628244372,-503.00110896,0.00018078,2]
[350103157,1737628244381,-500.0,0.00018078,2]
[350103158,1737628244391,-500.00000001,0.00018078,2]
[350103159,1737628244400,-500.0,0.00018078,2]
[350103160,1737628244409,-500.0,0.00018078,2]
[350103161,1737628244419,-392.14927782,0.00018078,2]
[350103162,1737628244428,-500.0,0.00018078,2]
[350103163,1737628244438,-500.0,0.00018078,2]
[350103164,1737628244448,-506.55677323,0.00018078,2]
[350103165,1737628244457,-502.83468122,0.00018078,2]
[350103166,1737628244467,-503.24848872,0.00018078,2]
[350103167,1737628244477,-500.0,0.00018078,2]
[350103168,1737628244487,-504.34700661,0.00018078,2]
[350103169,1737628244496,-500.0,0.00018078,2]
[350103170,1737628244506,-510.5576074,0.00018078,2]
[350103171,1737628244516,-500.0,0.00018078,2]
[350103172,1737628244525,-500.0,0.00018078,2]
[350103173,1737628244535,-503.59872453,0.00018078,2]
[350103174,1737628244544,-500.0,0.00018078,2]
[350103175,1737628244554,-500.0,0.00018078,2]
[350103176,1737628244563,-500.0,0.00018078,2]
[350103177,1737628244573,-500.0,0.00018078,2]
[350103178,1737628244584,-500.0,0.00018078,2]
[350103179,1737628244596,-500.0,0.00018078,2]
[350103180,1737628244607,-500.0,0.00018078,2]
[350103181,1737628244617,-500.0,0.00018078,2]
[350103182,1737628244627,-500.0,0.00018078,2]
[350103183,1737628244637,-500.0,0.00018078,2]
[350103184,1737628244647,-284.95554845,0.00018078,2]
[350103185,1737628244657,-500.0,0.00018078,2]
[350103186,1737628244667,-500.0,0.00018078,2]
[350103187,1737628244677,-500.0,0.00018078,2]
[350103188,1737628244690,-500.0,0.00018078,2]
[350103189,1737628244699,-500.0,0.00018078,2]
[350103190,1737628244709,-500.0,0.00018078,2]
[350103191,1737628244718,-500.0,0.00018078,2]
[350103192,1737628244728,-500.0,0.00018078,2]
[350103193,1737628244739,-500.0,0.00018078,2]
[350103194,1737628244748,-500.0,0.00018078,2]
[350103195,1737628244758,-500.0,0.00018078,2]
[350103196,1737628244770,-248.17398725,0.00018078,2]
[350103197,1737628244780,-500.0,0.00018078,2]
[350103198,1737628244790,-500.0,0.00018078,2]
[350103199,1737628244799,-500.0,0.00018078,2]
[350103200,1737628244809,-496.2,0.00018078,2]
[350103201,1737628244817,-500.0,0.00018078,2]
[350103202,1737628244827,-500.0,0.00018078,2]
[350103203,1737628244837,-500.0,0.00018078,2]
[350103204,1737628244846,-502.69455144,0.00018078,2]
[350103205,1737628244856,-500.0,0.00018078,2]
[350103206,1737628244865,-500.0,0.00018078,2]
[350103207,1737628244874,-500.0,0.00018078,2]
[350103208,1737628244883,-500.0,0.00018078,2]
[350103209,1737628244893,-500.0,0.00018078,2]
[350103210,1737628244903,-500.0,0.00018078,2]
[350103211,1737628244913,-500.0,0.00018078,2]
[350103212,1737628244923,-500.0,0.00018078,2]
[350103213,1737628244932,-500.0,0.00018078,2]
[350103214,1737628244941,-500.0,0.00018078,2]
[350103215,1737628244951,-500.0,0.00018078,2]
[350103216,1737628244959,-500.0,0.00018078,2]
[350103217,1737628244969,-500.0,0.00018078,2]
[350103218,1737628244978,-500.0,0.00018078,2]
[350103219,1737628244987,-500.0,0.00018078,2]
[350103220,1737628244997,-500.0,0.00018078,2]
[350103221,1737628245007,-500.0,0.00018078,2]
[350103222,1737628245017,-289.49335815,0.00018078,2]
[350103223,1737628245026,-300.0,0.00018078,2]
[350103224,1737628245036,-500.0,0.00018078,2]
[350103225,1737628245046,-500.0,0.00018078,2]
[350103226,1737628245056,-500.0,0.00018078,2]
[350103227,1737628245066,-500.0,0.00018078,2]
[350103228,1737628245076,-500.0,0.00018078,2]
[350103229,1737628245086,-500.0,0.00018078,2]
[350103230,1737628245095,-500.0,0.00018078,2]
[350103231,1737628245104,-500.0,0.00018078,2]
[350103232,1737628245113,-500.0,0.00018078,2]
[350103233,1737628245122,-500.0,0.00018078,2]
[350103234,1737628245131,-500.0,0.00018078,2]
[350103235,1737628245141,-553.17,0.00018078,2]
[350103236,1737628245151,-500.0,0.00018079,2]
[350103237,1737628245161,-500.0,0.00018079,2]
[350103238,1737628245170,-500.0,0.00018079,2]
[350103239,1737628245181,-500.0,0.00018079,2]
[350103240,1737628245191,-500.0,0.00018079,2]
[350103241,1737628245201,-500.0,0.00018079,2]
[350103242,1737628245212,-500.0,0.00018079,2]
[350103243,1737628245222,-500.0,0.00018079,2]
[350103244,1737628245231,-500.0,0.00018079,2]
[350103245,1737628245241,-500.0,0.00018079,2]
[350103246,1737628245251,-637.57222417,0.00018079,2]
[350103247,1737628245261,-500.0,0.00018079,2]
[350103248,1737628245270,-500.0,0.00018079,2]
[350103249,1737628245280,-607.25,0.00018079,2]
[350103250,1737628245289,-500.0,0.00018079,2]
[350103251,1737628245297,-500.0,0.00018079,2]
[350103252,1737628245306,-635.04446288,0.00018079,2]
[350103253,1737628245315,-500.0,0.00018079,2]
[350103254,1737628245326,-287.12,0.00018079,2]
[350103255,1737628245337,-500.0,0.00018079,2]
[350103256,1737628245346,-500.0,0.00018079,2]
[350103257,1737628245356,-500.0,0.00018079,2]
[350103258,1737628245365,-500.0,0.00018079,2]
[350103259,1737628245374,-500.0,0.00018079,2]
[350103260,1737628245383,-500.0,0.00018079,2]
[350103261,1737628245394,-500.0,0.00018079,2]
[350103262,1737628245403,-538.78,0.00018079,2]
[350103263,1737628245412,-500.0,0.00018079,2]
[350103264,1737628245424,-567.4,0.00018079,2]
[350103265,1737628245434,-500.0,0.00018079,2]
[350103266,1737628245443,-524.77,0.00018079,2]
[350103267,1737628245451,-500.0,0.00018079,2]
[350103268,1737628245460,-500.0,0.00018079,2]
[350103269,1737628245470,-500.0,0.00018079,2]
[350103270,1737628245482,-522.01,0.00018079,2]
[350103271,1737628245492,-500.0,0.00018079,2]
[350103272,1737628245502,-787.5,0.00018079,2]
[350103273,1737628245511,-1275.34,0.00018079,2]
[350103274,1737628245521,-769.32,0.00018079,2]
[350103275,1737628245531,-2156.24,0.00018079,2]
[350103276,1737628245541,-1069.57,0.00018079,2]
[350103277,1737628245550,-1953.19,0.00018079,2]
[350103278,1737628245560,-877.78,0.00018079,2]
[350103279,1737628245570,-728.1,0.00018079,2]
[350103280,1737628245579,-1299.42,0.00018079,2]
[350103281,1737628245588,-500.0,0.00018079,2]
[350103282,1737628245598,-1095.09,0.00018079,2]
[350103283,1737628245609,-3013.73,0.00018079,2]
[350103284,1737628245618,-500.0,0.00018079,2]
[350103285,1737628245628,-2369.17,0.00018079,2]
[350103286,1737628245638,-500.0,0.00018079,2]
[350103287,1737628245647,-4365.14,0.00018079,2]
[350103288,1737628245657,-500.0,0.00018079,2]
[350103289,1737628245667,-1210.34,0.00018079,2]
[350103290,1737628245677,-185.93514779,0.00018079,2]
[350103291,1737628245690,-1736.02,0.00018079,2]
[350103292,1737628245699,-580.8,0.00018079,2]
[350103293,1737628245709,-896.15,0.00018079,2]
[350103294,1737628245718,-1157.55,0.00018079,2]
[350103295,1737628245729,-970.94,0.00018079,2]
[350103296,1737628245738,-500.0,0.00018079,2]
[350103297,1737628245747,-845.56,0.00018079,2]
[350103298,1737628245757,-554.1,0.00018079,2]
[350103299,1737628245768,-500.0,0.00018079,2]
[350103300,1737628245777,-500.0,0.00018079,2]
[350103301,1737628245786,-2164.97,0.00018079,2]
[350103302,1737628245796,-1078.92,0.00018079,2]
[350103303,1737628245806,-544.27955278,0.00018079,2]
[350103304,1737628245815,-500.0,0.00018079,2]
[350103305,1737628245825,-500.0,0.00018079,2]
[350103306,1737628245834,-991.29,0.00018079,2]
[350103307,1737628245845,-832.57,0.00018079,2]
[350103308,1737628245855,-500.0,0.00018079,2]
[350103309,1737628245865,-1120.57,0.00018079,2]
[350103310,1737628245874,-500.0,0.00018079,2]
[350103311,1737628245883,-1260.06,0.00018079,2]
[350103312,1737628245892,-500.0,0.00018079,2]
[350103313,1737628245902,-1318.84,0.00018079,2]
[350103314,1737628245913,-500.0,0.00018079,2]
[350103315,1737628245922,-3971.43,0.00018079,2]
[350103316,1737628245932,-500.0,0.00018079,2]
[350103317,1737628245941,-500.0,0.00018079,2]
[350103318,1737628245951,-500.0,0.00018079,2]
[350103319,1737628245960,-500.0,0.00018079,2]
[350103320,1737628245969,-1000.0,0.00018079,2]
[350103321,1737628245979,-1140.59,0.00018079,2]
[350103322,1737628245988,-500.0,0.00018079,2]
[350103323,1737628245997,-500.0,0.00018079,2]
[350103324,1737628246006,-500.0,0.00018079,2]
[350103325,1737628246016,-500.0,0.00018079,2]
[350103326,1737628246026,-500.0,0.00018079,2]
[350103327,1737628246035,-753.77,0.00018079,2]
[350103328,1737628246046,-182.23999928,0.00018079,2]
[350103329,1737628246055,-500.0,0.00018079,2]
[350103330,1737628246064,-1619.98,0.00018079,2]
[350103331,1737628246074,-500.0,0.00018079,2]
[350103332,1737628246083,-500.0,0.00018079,2]
[350103333,1737628246093,-707.4,0.00018079,2]
[350103334,1737628246102,-500.0,0.00018079,2]
[350103335,1737628246111,-1613.72,0.00018079,2]
[350103336,1737628246120,-877.65,0.00018079,2]
[350103337,1737628246130,-525.36,0.00018079,2]
[350103338,1737628246140,-913.42,0.00018079,2]
[350103339,1737628246152,-500.0,0.00018079,2]
[350103340,1737628246162,-1322.09,0.00018079,2]
[350103341,1737628246171,-500.0,0.00018079,2]
[350103342,1737628246180,-500.0,0.0001808,2]
[350103343,1737628246189,-500.0,0.0001808,2]
[350103344,1737628246199,-500.0,0.0001808,2]
[350103345,1737628246208,-500.0,0.0001808,2]
[350103346,1737628246217,-500.0,0.0001808,2]
[350103347,1737628246227,-500.0,0.0001808,2]
[350103348,1737628246236,-500.0,0.0001808,2]
[350103349,1737628246245,-500.0,0.0001808,2]
[350103350,1737628246254,-500.0,0.0001808,2]
[350103351,1737628246264,-500.0,0.0001808,2]
[350103352,1737628246275,-512.04,0.0001808,2]
[350103353,1737628246285,-794.66,0.0001808,2]
[350103354,1737628246295,-500.0,0.0001808,2]
[350103355,1737628246304,-500.0,0.0001808,2]
[350103356,1737628246314,-500.0,0.0001808,2]
[350103357,1737628246323,-500.0,0.0001808,2]
[350103358,1737628246332,-500.0,0.0001808,2]
[350103359,1737628246342,-500.0,0.0001808,2]
[350103360,1737628246351,-500.0,0.0001808,2]
[350103361,1737628246360,-500.0,0.0001808,2]
[350103362,1737628246369,-500.0,0.0001808,2]
[350103363,1737628246378,-500.0,0.0001808,2]
[350103364,1737628246387,-500.0,0.0001808,2]
[350103365,1737628246396,-500.0,0.0001808,2]
[350103366,1737628246406,-500.0,0.0001808,2]
[350103367,1737628246415,-500.0,0.0001808,2]
[350103368,1737628246423,-500.0,0.0001808,2]
[350103369,1737628246436,-500.0,0.0001808,2]
[350103370,1737628246446,-500.0,0.0001808,2]
[350103371,1737628246455,-500.0,0.0001808,2]
[350103372,1737628246465,-500.0,0.0001808,2]
[350103373,1737628246474,-500.0,0.0001808,2]
[350103374,1737628246483,-500.0,0.0001808,2]